{"text_format":"1","workbook":"xlsx","n_sheets":2,"sheets":["Main","About"],"not_rendered":{"charts":0,"images":1,"macros":1,"external_links":0,"defined_names":0,"comments":0,"pivot_tables":0},"unopened":[],"bounds":{"document_bytes":16777216,"sheet_cells":100000,"rows_first":2000,"rows_last":500,"rows_between":2000,"halvings":0,"cell_chars":16384,"cell_head_chars":4096},"cells_cut":0,"cells_raw":0,"read":"whole","date_system":"1900"}

{"sheet":"Main","index":0,"n_rows":51,"n_cols":25,"rows_kept":51,"cut":false,"hidden":false,"merged":[[0,10,0,15],[19,10,19,12]]}
["No.","Publication No.","Download No.","Re-download No.",null,null,null,null,"Download Folder",null,"D:\\Data\\",null,null,null,null,null,null,null,null,null,null,null,null,0,1]
[{"$f":"ROW()-1","v":1},null,null,null,null,null,null,null,null,null,null,"← Seleniumbasicのインストール先、通常は空欄でOK、記載する際にはドライブ名から\\Seleniumbasicまでフルパスで記入"]
[{"$f":"ROW()-1","v":2},null,null,null,null,null,null,null,"DL form Espacenet",null,1,"　　　0： No、　1： Yes　",null,0,"proxyホスト→",null,"← 通常は空でＯＫ、プロキシ利用環境のときは、ホスト名を入力"]
[3,null,null,null,null,null,null,null,"Browser",null,0,"　0： Chrome 、1： Edge　",null,1,"proxy ポート番号→",null,"← 通常は空でＯＫ、プロキシ利用環境のときは、ポート番号を入力"]
[4,null,null,null,null,null,null,null,null,null,0,"← ブラウザ表示：　0：非表示、1：表示、2：枠外表示"]
[5,null,null,null,null,null,null,null,null,": PDF not found"]
[6,null,null,null,null,null,null,null,null,": Download from Google succeeded"]
[7,null,null,null,null,null,null,null,null,": Download from Espacenet succeeded"]
[8]
[9]
[10]
[11]
[12]
[13]
[14]
[15,null,null,null,null,{"$f":"About!B2","v":"    Google Patents Downloader (GPD)  ver. 2.80EL    Copyright © 2019-2024  I. Sawaki "}]
[16]
[17]
[18]
[19]
[20]
[21]
[22]
[23]
[24]
[25]
[26]
[27]
[28]
[29]
[30]
[31]
[32]
[33]
[34]
[35]
[36]
[37]
[38]
[39]
[40]
[41]
[42]
[43]
[44]
[45]
[46]
[47]
[48]
[49]
[50]

{"sheet":"About","index":1,"n_rows":97,"n_cols":9,"rows_kept":97,"cut":false,"hidden":false,"merged":[]}
[]
[null,"    Google Patents Downloader (GPD)  ver. 2.80EL    Copyright © 2019-2024  I. Sawaki "]
[null,null,null,null,null,null,null,"　　URL：","https://pe-sawaki.com/tool/gpd"]
[null,null,null,null,null,null,null,"　　Mail ：","cycle.sawaki@nifty.com"]
[]
[null,"※※ インストラクション　※※"]
[null,1,"K1に、公報をダウンロードするフォルダ名を入力（絶対パスで記入）"]
[null,2,"B列に、公報番号を入力する（貼りつける）（最大1000公報）"]
[null,3,"Auto ボタンをクリックすると、pdf公報のダウンロードが順番に行われる"]
[null,null,"　Google Patentsで見つからないものは赤色、pdf公報がないものはオレンジ色表示される"]
[null,4,"赤色やオレンジ色になった公報は、ダウンロード番号を見直す"]
[null,null,"　Google Patents ボタンをクリックし、Google Patentsサイトで、適当な公報番号を探す"]
[null,null,"　再取得に適当な番号があれば、その公報番号を同じ行のD列（再ダウンロード番号）に記入する"]
[null,5,"Manual ボタンをクリックすると、D列に記載したpdf公報がダウンロードされる"]
[null,6,"Clearボタンをクリックすると、B～D列のデータが消去される（pdf公報は削除されない）"]
[]
[null,"★★","このバージョンでは、Google Patents にPDF公報が無い場合、EspacenetからPDF公報をダウンロードします。"]
[null,null,"Espacenetへのアクセスには、Google Chrome またはMicrosoft Edge を使用するので、以下の3点を要確認"]
[]
[null,null,"　①ブラウザとしGoogle Chrome または Microsoft Edge がインストールされていること"]
[]
[null,null,"　②ブラウザをExcelから操作するためのドライバー（Seleniumbasic）のインストールが必要"]
[null,null,"　　　以下のURLにアクセス"]
[null,null,"　　　https://florentbr.github.io/SeleniumBasic/"]
[null,null,"　　　このページの、Download欄の 「Release page」をクリック"]
[null,null,"　　　Assets欄の「SeleniumBasic-2.0.9.0.exe」をクリック"]
[null,null,"　　　ダウンロードしたファイルを実行して、SeleniumBasicをインストールする"]
[null,null,"　　　参考：　http://kensyou-d.info/selenium.html　　ここではChromeドライバまたはEdgeドライバのインストールは不要"]
[]
[null,null,"　③Seleniumbasicの動作に必要な .NET Framework 3.5 のインストールが必要"]
[null,null,"　　　以前は多くのPCにインストール済みでしたが、最近のPCの場合には、以下のURLの記載を参考にして"]
[null,null,"　　　.NET Framework 3.5 がインストールされているかどうかをチェックし、インストールされていない場合"]
[null,null,"　　　インストールしてください"]
[null,null,"　　　https://office-hack.com/windows/windows10-netframework/"]
[]
[null,null,"　　※ ブラウザの操作には、別途、ブラウザのバージョンと合わせた最新のchromedriver.exeまたはedgedriver.exe"]
[null,null,"　　　　が必要がです、本ツール（GPD)では、自動的に最新のドライバファイルをダウンロードしてインストールする"]
[null,null,"　　　　ので、ユーザー側での操作は不要"]
[null,null,"　　　　　　＊自動でドライバの更新ができない場合、セルK2にSeleniumbasicのフォルダ名を"]
[null,null,"　　　　　　　 記入すると、自動更新がうまくいくことがある"]
[null,null,"　　　　（Webdriver Manager を使用：開発者のyamato1413氏に感謝）"]
[null,null,"　　　　https://qiita.com/yamato1413/items/4b982aee46f28358fd39"]
[]
[null,"☆☆","Microsoftのセキュリティ強化に伴って、Excelマクロが無効となっている場合の対応"]
[null,null,"　　①ファイルをローカルドライブ、ネットワーク共有、クラウド共有等に保存"]
[null,null,"　　②エクスプローラー を開き、ファイルを保存したフォルダーに移動"]
[null,null,"　　③ファイルを右クリックし、コンテキスト メニュー から [プロパティ ] を選択"]
[null,null,"　　④[全般] タブの 下部 に、[セキュリティ] のセクションが表示されるので、"]
[null,null,"　　　 [ブロック解除 ] チェック ボックスをオン にして、[OK] を選択"]
[null,null,"　　　参考：　https://forest.watch.impress.co.jp/docs/news/1386850.html"]
[]
[]
[null,"☆☆ 公報番号のフォーマット ☆☆"]
[null,"        JP","公開：特開2017-123456、特開平08-123456、特開昭61-123456、JP2017-123456"]
[null,null,"公表：特表2017-523456、特表平08-523456、特表昭61-523456、JP2017-523456"]
[null,null,"再表：再表2017-123456、WO17/123456、WO2017/123456、JPWO2017-123456"]
[null,null,"登録：特許05671234、JP05671234"]
[]
[null,"　　　　US","公開：US2017-123456、US2017123456"]
[null,null,"登録：US1234567、US12345678"]
[]
[null,"        WO","公開：WO2017-123456A、WO2017123456A"]
[]
[null,"　　　　EP","公開：EP1234567A"]
[null,null,"登録：EP1234567B"]
[]
[null,"        CN","公開：CN123456789A"]
[null,null,"登録：CN123456789B"]
[null,null,"実案：CN123456789U"]
[]
[null,"        KR","公開：KR2017-0123456、KR2017-0123456A、KR20170123456、KR20170123456A"]
[null,null,"登録：KR1234567、KR1234567B、KR101234567、KR101234567B"]
[]
[null,"        RU","公開：RU2017-123456A、RU2017123456A"]
[null,null,"登録：RU1234567C"]
[]
[null,"Ver 1.00","2019-06-10","完成版"]
[null,"Ver 1.01","2019-06-18","公報番号中のスペースを削除"]
[null,"Ver 1.10","2019-08-13","再表公報は、\"JPWO\"で始まる公報を取得"]
[null,"Ver 1.20","2019-08-20","Google Patents に公報が収録されていない場合の、Google側の挙動変更に対応"]
[null,"Ver 1.30","2019-09-16","ファイルサイズの大きい公報に対応し、スピードアップのために処理アルゴリズムを大幅変更"]
[null,"Ver 1.40","2020-07-09","PC機種によって動作しないケースがあることに対応"]
[null,"Ver 1.50","2020-09-15","KR特許に対応"]
[null,"Ver 1.60","2021-02-09","公報番号中の全角英数字、半角英小文字を半角大文字に変換"]
[null,"Ver 1.70","2021-03-16","ネットワーク環境によってはアクセスできない場合に一部対応"]
[null,"Ver 1.80","2021-04-01","Google Patents へのアクセス方法の一部見直し"]
[null,"Ver 1.90","2021-04-14","Google Patents へのアクセスが失敗したとき、VB標準のWebBrowserコントロールで再トライ"]
[null,"Ver 2.00","2021-04-20","WO公報のうち、日本で再公表されているものは再公表公報をダウンロードする機能を組み込み"]
[null,"Ver 2.10","2021-04-23","PDFをダウンロードしたフォルダを開く機能を追加"]
[null,"Ver 2.20","2022-05-31","取得エラー後の公報取得に失敗するバグ修正"]
[null,"Ver 2.21","2022-08-10","日本特許の\"特許第abcdefg号\"に対応"]
[null,"Ver 2.30E","2023-03-14","Google Patentsで入手できなかった公報をEspacenetから入手 （Seleniumbasic使用）"]
[null,"Ver 2.40E","2023-05-02","公報番号変換処理のエラー修正、Espacenetからのダウンロード処理一部見直し"]
[null,"Ver 2.50E","2023-07-25","chromedriverの自動更新処理のアップデート"]
[null,"Ver 2.60E","2023-10-10","Espacenetのロボット操作判定の厳格化に対応、プロキシ環境への対応（非公式）"]
[null,"Ver 2.70E","2023-11-09","chromedriverの自動更新処理のバグ修正"]
[null,"Ver 2.80E","2024-03-19","chromedriverのダウンロードサイトURL変更に対応"]